fUSD/lending_fUSD_20240426
["ID","MTS","AMOUNT","RATE_DAILY","PERIOD"]
[323652682,1714147864506,-500.0,0.0001209,2]
[323652683,1714147864516,-4912.03,0.0001209,2]
[323652684,1714147864526,-500.0,0.0001209,2]
[323652685,1714147864535,-500.0,0.0001209,2]
[323652686,1714147864545,-2267.21,0.0001209,2]
[323652687,1714147864554,-500.0,0.0001209,2]
[323652688,1714147864564,-3292.1,0.0001209,2]
[323652689,1714147864574,-500.0,0.0001209,2]
[323652690,1714147864583,-4403.85,0.0001209,2]
[323652691,1714147864593,-500.0,0.0001209,2]
[323652692,1714147864602,-500.0,0.0001209,2]
[323652693,1714147864612,-1216.81,0.0001209,2]
[323652694,1714147864622,-1167.03,0.0001209,2]
[323652695,1714147864631,-500.0,0.0001209,2]
[323652696,1714147864640,-500.0,0.0001209,2]
[323652697,1714147864650,-649.63399668,0.0001209,2]
[323652698,1714147864663,-500.0,0.0001209,2]
[323652699,1714147864672,-1876.03,0.0001209,2]
[323652700,1714147864682,-2711.28,0.0001209,2]
[323652701,1714147864692,-500.0,0.0001209,2]
[323652702,1714147864701,-501.75,0.0001209,2]
[323652703,1714147864710,-500.0,0.0001209,2]
[323652704,1714147864720,-2315.21,0.0001209,2]
[323652705,1714147864729,-6432.56,0.0001209,2]
[323652706,1714147864738,-500.0,0.0001209,2]
[323652707,1714147864747,-500.0,0.00012091,2]
[323652708,1714147864756,-500.0,0.00012091,2]
[323652709,1714147864765,-500.0,0.00012091,2]
[323652710,1714147864775,-350.50730495,0.00012091,2]
[323652711,1714147864785,-500.0,0.00012091,2]
[323652712,1714147864794,-500.0,0.00012091,2]
[323652713,1714147864805,-500.0,0.00012091,2]
[323652714,1714147864815,-500.0,0.00012091,2]
[323652715,1714147864825,-500.0,0.00012091,2]
[323652716,1714147864834,-500.0,0.00012091,2]
[323652717,1714147864844,-500.0,0.00012091,2]
[323652718,1714147864855,-500.0,0.00012091,2]
[323652719,1714147864864,-500.0,0.00012091,2]
[323652720,1714147864873,-500.0,0.00012091,2]
[323652721,1714147864883,-1237.29,0.00012091,2]
[323652722,1714147864893,-956.3,0.00012091,2]
[323652723,1714147864904,-500.0,0.00012091,2]
[323652724,1714147864914,-500.0,0.00012091,2]
[323652725,1714147864923,-500.0,0.00012091,2]
[323652726,1714147864932,-903.79,0.00012091,2]
[323652727,1714147864941,-705.58,0.00012091,2]
[323652728,1714147864950,-500.0,0.00012091,2]
[323652729,1714147864960,-500.0,0.00012092,2]
[323652730,1714147864969,-500.0,0.00012092,2]
[323652731,1714147864979,-500.0,0.00012092,2]
[323652732,1714147864988,-500.0,0.00012092,2]
[323652733,1714147864997,-500.0,0.00012092,2]
[323652734,1714147865007,-400.0,0.00012094,2]
[323652735,1714147865016,-691.51618702,0.00012105,2]
[323652736,1714147865025,-691.51618702,0.00012237,2]
[323652737,1714147865035,-161.75706597,0.00012261,2]
[323652738,1714147865045,-585.26366029,0.00012263,2]
[323652739,1714147865055,-155.0,0.000123,2]
[323652740,1714147865065,-1014.0,0.00012328,2]
[323652741,1714147865074,-514.0,0.00012328,2]
[323652742,1714147865084,-500.0,0.00012361,2]
[323652743,1714147865093,-8053.11,0.00012361,2]
[323652744,1714147865102,-500.0,0.00012361,2]
[323652745,1714147865112,-1577.81,0.00012361,2]
[323652746,1714147865121,-1157.15,0.00012361,2]
[323652747,1714147865130,-882.97,0.00012361,2]
[323652748,1714147865140,-500.0,0.00012361,2]
[323652749,1714147865150,-500.0,0.00012361,2]
[323652750,1714147865162,-2786.59,0.00012361,2]
[323652751,1714147865172,-1177.64,0.00012361,2]
[323652752,1714147865181,-878.35,0.00012361,2]
[323652753,1714147865191,-560.93,0.00012361,2]
[323652754,1714147865200,-500.0,0.00012361,2]
[323652755,1714147865210,-1136.56,0.00012361,2]
[323652756,1714147865220,-1281.82,0.00012361,2]
[323652757,1714147865230,-2154.74,0.00012361,2]
[323652758,1714147865239,-1966.39,0.00012361,2]
[323652759,1714147865250,-1692.66,0.00012361,2]
[323652760,1714147865260,-500.0,0.00012361,2]
[323652761,1714147865269,-734.3,0.00012361,2]
[323652762,1714147865279,-500.0,0.00012361,2]
[323652763,1714147865289,-2684.49,0.00012361,2]
[323652764,1714147865299,-1353.16,0.00012361,2]
[323652765,1714147865310,-3926.1,0.00012361,2]
[323652766,1714147865320,-1393.7,0.00012361,2]
[323652767,1714147865330,-1490.81,0.00012361,2]
[323652768,1714147865340,-819.29,0.00012361,2]
[323652769,1714147865350,-500.0,0.00012361,2]
[323652770,1714147865360,-807.09,0.00012361,2]
[323652771,1714147865370,-2008.18,0.00012361,2]
[323652772,1714147865380,-4700.21,0.00012361,2]
[323652773,1714147865389,-1706.06,0.00012361,2]
[323652774,1714147865399,-2092.68,0.00012361,2]
[323652775,1714147865411,-2898.09,0.00012361,2]
[323652776,1714147865421,-1106.62,0.00012361,2]
[323652777,1714147865430,-627.48,0.00012361,2]
[323652778,1714147865440,-2557.6,0.00012361,2]
[323652779,1714147865450,-1120.52,0.00012361,2]
[323652780,1714147865460,-854.41,0.00012361,2]
[323652781,1714147865469,-1171.2,0.00012361,2]
[323652782,1714147865479,-726.43,0.00012361,2]
[323652783,1714147865489,-534.26,0.00012361,2]
[323652784,1714147865499,-1092.08,0.00012361,2]
[323652785,1714147865508,-500.0,0.00012361,2]
[323652786,1714147865518,-2568.73,0.00012361,2]
[323652787,1714147865527,-500.0,0.00012361,2]
[323652788,1714147865537,-500.0,0.00012361,2]
[323652789,1714147865547,-2574.97,0.00012361,2]
[323652790,1714147865557,-4363.94,0.00012361,2]
[323652791,1714147865567,-500.0,0.00012361,2]
[323652792,1714147865577,-500.0,0.00012361,2]
[323652793,1714147865587,-500.0,0.00012361,2]
[323652794,1714147865597,-500.0,0.00012361,2]
[323652795,1714147865606,-500.0,0.00012361,2]
[323652796,1714147865616,-500.0,0.00012361,2]
[323652797,1714147865627,-500.0,0.00012361,2]
[323652798,1714147865637,-1130.73,0.00012361,2]
[323652799,1714147865647,-2236.83,0.00012361,2]
[323652800,1714147865657,-500.0,0.00012361,2]
[323652801,1714147865667,-500.0,0.00012361,2]
[323652802,1714147865677,-500.0,0.00012361,2]
[323652803,1714147865689,-2696.38,0.00012361,2]
[323652804,1714147865699,-3383.6,0.00012361,2]
[323652805,1714147865710,-500.0,0.00012361,2]
[323652806,1714147865721,-2789.78,0.00012361,2]
[323652807,1714147865732,-500.0,0.00012361,2]
[323652808,1714147865743,-500.0,0.00012363,2]
[323652809,1714147865752,-500.0,0.00012363,2]
[323652810,1714147865763,-500.0,0.00012363,2]
[323652811,1714147865773,-500.0,0.00012363,2]
[323652812,1714147865784,-500.0,0.00012363,2]
[323652813,1714147865794,-500.0,0.00012363,2]
[323652814,1714147865806,-504.6982611,0.00012363,2]
[323652815,1714147865819,-750.62,0.00012363,2]
[323652816,1714147865829,-500.0,0.00012363,2]
[323652817,1714147865840,-500.0,0.00012363,2]
[323652818,1714147865850,-500.0,0.00012363,2]
[323652819,1714147865862,-500.0,0.00012363,2]
[323652820,1714147865872,-500.0,0.00012363,2]
[323652821,1714147865884,-500.0,0.00012363,2]
[323652822,1714147865896,-500.0,0.00012363,2]
[323652823,1714147865909,-500.0,0.00012363,2]
[323652824,1714147865920,-500.0,0.00012363,2]
[323652825,1714147865931,-500.0,0.00012363,2]
[323652826,1714147865942,-500.0,0.00012363,2]
[323652827,1714147865953,-500.0,0.00012363,2]
[323652828,1714147865965,-500.0,0.00012363,2]
[323652829,1714147865976,-500.0,0.00012363,2]
[323652830,1714147865987,-500.0,0.00012363,2]
[323652831,1714147865997,-545.71,0.00012363,2]
[323652832,1714147866009,-500.0,0.00012363,2]
[323652833,1714147866019,-500.0,0.00012363,2]
[323652834,1714147866029,-813.78,0.00012363,2]
[323652835,1714147866039,-500.0,0.00012363,2]
[323652836,1714147866049,-500.0,0.00012363,2]
[323652837,1714147866060,-500.0,0.00012363,2]
[323652838,1714147866071,-500.0,0.00012363,2]
[323652839,1714147866082,-500.0,0.00012363,2]
[323652840,1714147866092,-500.0,0.00012363,2]
[323652841,1714147866102,-500.0,0.00012363,2]
[323652842,1714147866112,-500.0,0.00012363,2]
[323652843,1714147866123,-338.56,0.00012363,2]
[323652844,1714147866133,-500.0,0.00012363,2]
[323652845,1714147866144,-500.0,0.00012363,2]
[323652846,1714147866156,-745.67,0.00012363,2]
[323652847,1714147866167,-500.0,0.00012363,2]
[323652848,1714147866178,-500.0,0.00012363,2]
[323652849,1714147866189,-500.0,0.00012363,2]
[323652850,1714147866200,-500.0,0.00012363,2]
[323652851,1714147866210,-500.0,0.00012363,2]
[323652852,1714147866221,-500.0,0.00012363,2]
[323652853,1714147866231,-500.0,0.00012363,2]
[323652854,1714147866243,-500.0,0.00012363,2]
[323652855,1714147866253,-500.0,0.00012363,2]
[323652856,1714147866263,-500.0,0.00012363,2]
[323652857,1714147866273,-500.0,0.00012363,2]
[323652858,1714147866284,-500.0,0.00012363,2]
[323652859,1714147866295,-502.26,0.00012363,2]
[323652860,1714147866305,-500.0,0.00012363,2]
[323652861,1714147866316,-500.0,0.00012363,2]
[323652862,1714147866326,-500.0,0.00012363,2]
[323652863,1714147866336,-533.37,0.00012363,2]
[323652864,1714147866347,-500.0,0.00012363,2]
[323652865,1714147866357,-500.0,0.00012363,2]
[323652866,1714147866368,-500.0,0.00012363,2]
[323652867,1714147866378,-500.0,0.00012363,2]
[323652868,1714147866388,-500.0,0.00012363,2]
[323652869,1714147866398,-500.0,0.00012363,2]
[323652870,1714147866411,-500.0,0.00012363,2]
[323652871,1714147866422,-500.0,0.00012363,2]
[323652872,1714147866432,-500.0,0.00012363,2]
[323652873,1714147866442,-500.0,0.00012363,2]
[323652874,1714147866453,-500.0,0.00012363,2]
[323652875,1714147866463,-500.0,0.00012363,2]
[323652876,1714147866473,-500.0,0.00012363,2]
[323652877,1714147866483,-500.0,0.00012363,2]
[323652878,1714147866493,-500.0,0.00012363,2]
[323652879,1714147866503,-500.0,0.00012363,2]
[323652880,1714147866514,-500.0,0.00012363,2]
[323652881,1714147866524,-500.0,0.00012363,2]
[323652882,1714147866534,-500.0,0.00012363,2]
[323652883,1714147866544,-756.36,0.00012363,2]
[323652884,1714147866554,-500.0,0.00012363,2]
[323652885,1714147866565,-1209.02,0.00012363,2]
[323652886,1714147866575,-500.0,0.00012363,2]
[323652887,1714147866585,-500.0,0.00012363,2]
[323652888,1714147866595,-500.0,0.00012363,2]
[323652889,1714147866605,-500.0,0.00012363,2]
[323652890,1714147866615,-632.24,0.00012363,2]
[323652891,1714147866625,-500.0,0.00012363,2]
[323652892,1714147866635,-500.0,0.00012363,2]
[323652893,1714147866645,-500.0,0.00012363,2]
[323652894,1714147866658,-739.64,0.00012363,2]
[323652895,1714147866668,-1244.44,0.00012363,2]
[323652896,1714147866677,-500.0,0.00012363,2]
[323652897,1714147866687,-500.0,0.00012363,2]
[323652898,1714147866697,-500.0,0.00012363,2]
[323652899,1714147866707,-500.0,0.00012363,2]
[323652900,1714147866716,-500.0,0.00012363,2]
[323652901,1714147866726,-762.64,0.00012363,2]
[323652902,1714147866736,-541.36760375,0.00012363,2]
[323652903,1714147866746,-1138.74,0.00012363,2]
[323652904,1714147866756,-500.0,0.00012363,2]
[323652905,1714147866765,-500.0,0.00012363,2]
[323652906,1714147866775,-683.13,0.00012363,2]
[323652907,1714147866784,-500.0,0.00012363,2]
[323652908,1714147866794,-500.0,0.00012363,2]
[323652909,1714147866810,-500.0,0.00012363,2]
[323652910,1714147866820,-500.0,0.00012363,2]
[323652911,1714147866829,-555.17,0.00012363,2]
[323652912,1714147866839,-500.0,0.00012363,2]
[323652913,1714147866850,-500.0,0.00012363,2]
[323652914,1714147866860,-500.0,0.00012363,2]
[323652915,1714147866870,-500.0,0.00012363,2]
[323652916,1714147866880,-500.0,0.00012363,2]
[323652917,1714147866890,-500.0,0.00012363,2]
[323652918,1714147866900,-500.0,0.00012363,2]
[323652919,1714147866912,-500.0,0.00012363,2]
[323652920,1714147866922,-500.0,0.00012363,2]
[323652921,1714147866932,-717.29,0.00012363,2]
[323652922,1714147866942,-500.0,0.00012363,2]
[323652923,1714147866952,-500.0,0.00012363,2]
[323652924,1714147866962,-500.0,0.00012363,2]
[323652925,1714147866973,-500.0,0.00012363,2]
[323652926,1714147866983,-500.0,0.00012363,2]
[323652927,1714147866993,-500.0,0.00012363,2]
[323652928,1714147867003,-500.0,0.00012363,2]
[323652929,1714147867013,-500.0,0.00012363,2]
[323652930,1714147867023,-500.0,0.00012363,2]
[323652931,1714147867033,-500.0,0.00012363,2]
[323652932,1714147867043,-496.55,0.00012363,2]
[323652933,1714147867053,-158.25479824,0.00012363,2]
[323652934,1714147867063,-854.98,0.00012363,2]
[323652935,1714147867074,-273.56,0.00012363,2]
[323652936,1714147867085,-500.0,0.00012363,2]
[323652937,1714147867095,-1204.53,0.00012363,2]
[323652938,1714147867105,-500.0,0.00012363,2]
[323652939,1714147867115,-635.39,0.00012363,2]
[323652940,1714147867125,-500.0,0.00012363,2]
[323652941,1714147867136,-500.0,0.00012363,2]
[323652942,1714147867146,-500.0,0.00012363,2]
[323652943,1714147867156,-500.0,0.00012363,2]
[323652944,1714147867166,-309.04,0.00012363,2]
[323652945,1714147867177,-614.69,0.00012363,2]
[323652946,1714147867187,-500.0,0.00012363,2]
[323652947,1714147867196,-500.0,0.00012363,2]
[323652948,1714147867207,-500.0,0.00012363,2]
[323652949,1714147867217,-504.66944444,0.00012363,2]
[323652950,1714147867227,-504.9304448,0.00012363,2]
[323652951,1714147867238,-500.0,0.00012363,2]
[323652952,1714147867248,-155.89263304,0.00012363,2]
[323652953,1714147867258,-500.0,0.00012363,2]
[323652954,1714147867269,-500.0,0.00012363,2]
[323652955,1714147867279,-621.48774839,0.00012363,2]
[323652956,1714147867290,-500.0,0.00012363,2]
[323652957,1714147867300,-1202.3,0.00012363,2]
[323652958,1714147867311,-500.0,0.00012363,2]
[323652959,1714147867321,-500.0,0.00012363,2]
[323652960,1714147867331,-500.0,0.00012363,2]
[323652961,1714147867342,-1182.99,0.00012363,2]
[323652962,1714147867352,-500.0,0.00012363,2]
[323652963,1714147867363,-500.0,0.00012363,2]
[323652964,1714147867373,-500.0,0.00012363,2]
[323652965,1714147867383,-500.0,0.00012363,2]
[323652966,1714147867394,-500.0,0.00012363,2]
[323652967,1714147867404,-461.25682709,0.00012363,2]
[323652968,1714147867414,-500.0,0.00012363,2]
[323652969,1714147867424,-868.84,0.00012363,2]
[323652970,1714147867434,-194.87,0.00012363,2]
[323652971,1714147867444,-500.0,0.00012363,2]
[323652972,1714147867454,-500.0,0.00012363,2]
[323652973,1714147867464,-500.0,0.00012363,2]
[323652974,1714147867474,-500.0,0.00012363,2]
[323652975,1714147867484,-1601.72,0.00012363,2]
[323652976,1714147867494,-505.66,0.00012363,2]
[323652977,1714147867504,-500.0,0.00012363,2]
[323652978,1714147867513,-500.0,0.00012363,2]
[323652979,1714147867523,-620.8,0.00012363,2]
[323652980,1714147867739,-500.0,0.00012363,2]
[323652981,1714147867749,-500.0,0.00012363,2]
[323652982,1714147867759,-909.37,0.00012363,2]
[323652983,1714147867768,-500.0,0.00012363,2]
[323652984,1714147867778,-500.0,0.00012363,2]
[323652985,1714147867787,-500.0,0.00012363,2]
[323652986,1714147867797,-500.0,0.00012363,2]
[323652987,1714147867808,-500.0,0.00012363,2]
[323652988,1714147867820,-500.0,0.00012363,2]
[323652989,1714147867829,-214.5865122,0.00012363,2]
[323652990,1714147867839,-500.0,0.00012363,2]
[323652991,1714147867849,-500.0,0.00012363,2]
[323652992,1714147867858,-500.0,0.00012363,2]
[323652993,1714147867868,-500.0,0.00012363,2]
[323652994,1714147867878,-500.0,0.00012363,2]
[323652995,1714147867888,-851.73,0.00012363,2]
[323652996,1714147867899,-500.0,0.00012363,2]
[323652997,1714147867910,-2988.74,0.00012363,2]
[323652998,1714147867920,-500.0,0.00012363,2]
[323652999,1714147867930,-500.0,0.00012363,2]
[323653000,1714147867939,-500.0,0.00012363,2]
[323653001,1714147867949,-500.0,0.00012363,2]
[323653002,1714147867958,-500.0,0.00012363,2]
[323653003,1714147867968,-9775.92,0.00012363,2]
[323653004,1714147867978,-500.0,0.00012363,2]
[323653005,1714147867988,-500.0,0.00012363,2]
[323653006,1714147867997,-500.0,0.00012363,2]
[323653007,1714147868007,-500.0,0.00012363,2]
[323653008,1714147868017,-6412.35,0.00012363,2]
[323653009,1714147868026,-1115.33,0.00012363,2]
[323653010,1714147868036,-500.0,0.00012363,2]
[323653011,1714147868046,-2967.3,0.00012363,2]
[323653012,1714147868055,-2437.3,0.00012363,2]
[323653013,1714147868064,-500.0,0.00012363,2]
[323653014,1714147868074,-500.0,0.00012363,2]
[323653015,1714147868084,-1005.66,0.00012363,2]
[323653016,1714147868093,-500.0,0.00012363,2]
[323653017,1714147868103,-500.0,0.00012363,2]
[323653018,1714147868112,-500.0,0.00012363,2]
[323653019,1714147868121,-500.0,0.00012363,2]
[323653020,1714147868131,-500.0,0.00012363,2]
[323653021,1714147868141,-500.0,0.00012363,2]
[323653022,1714147868150,-500.0,0.00012363,2]
[323653023,1714147868161,-610.55,0.00012363,2]
[323653024,1714147868170,-500.0,0.00012363,2]
[323653025,1714147868179,-500.0,0.00012363,2]
[323653026,1714147868189,-500.0,0.00012363,2]
[323653027,1714147868198,-3416.44,0.00012363,2]
[323653028,1714147868208,-500.0,0.00012363,2]
[323653029,1714147868217,-500.0,0.00012363,2]
[323653030,1714147868226,-500.0,0.00012363,2]
[323653031,1714147868236,-500.0,0.00012363,2]
[323653032,1714147868246,-500.0,0.00012363,2]
[323653033,1714147868255,-7620.2,0.00012363,2]
[323653034,1714147868265,-500.0,0.00012363,2]
[323653035,1714147868274,-500.0,0.00012363,2]
[323653036,1714147868284,-1325.54,0.00012363,2]
[323653037,1714147868294,-500.0,0.00012363,2]
[323653038,1714147868303,-500.0,0.00012363,2]
[323653039,1714147868312,-500.0,0.00012363,2]
[323653040,1714147868322,-5249.74,0.00012363,2]
[323653041,1714147868331,-500.0,0.00012363,2]
[323653042,1714147868341,-500.0,0.00012363,2]
[323653043,1714147868350,-500.0,0.00012363,2]
[323653044,1714147868359,-723.51,0.00012363,2]
[323653045,1714147868369,-500.0,0.00012363,2]
[323653046,1714147868378,-3374.18,0.00012363,2]
[323653047,1714147868388,-500.0,0.00012363,2]
[323653048,1714147868398,-500.0,0.00012363,2]
[323653049,1714147868407,-1435.87,0.00012363,2]
[323653050,1714147868417,-664.63,0.00012363,2]
[323653051,1714147868425,-500.0,0.00012363,2]
[323653052,1714147868435,-500.0,0.00012363,2]
[323653053,1714147868445,-500.0,0.00012363,2]
[323653054,1714147868454,-500.0,0.00012363,2]
[323653055,1714147868463,-500.0,0.00012363,2]
[323653056,1714147868473,-500.0,0.00012363,2]
[323653057,1714147868483,-500.0,0.00012363,2]
[323653058,1714147868493,-500.0,0.00012363,2]
[323653059,1714147868503,-500.0,0.00012363,2]
[323653060,1714147868513,-503.05500807,0.00012363,2]
[323653061,1714147868522,-582.60189381,0.00012363,2]
[323653062,1714147868532,-11147.72,0.00012363,2]
[323653063,1714147868541,-500.0,0.00012363,2]
[323653064,1714147868551,-500.0,0.00012363,2]
[323653065,1714147868561,-500.0,0.00012363,2]
[323653066,1714147868570,-500.0,0.00012363,2]
[323653067,1714147868580,-500.0,0.00012363,2]
[323653068,1714147868591,-500.0,0.00012363,2]
[323653069,1714147868600,-500.0,0.00012363,2]
[323653070,1714147868610,-500.0,0.00012363,2]
[323653071,1714147868620,-500.0,0.00012363,2]
[323653072,1714147868630,-500.0,0.00012363,2]
[323653073,1714147868639,-10840.8,0.00012363,2]
[323653074,1714147868649,-500.0,0.00012363,2]
[323653075,1714147868659,-500.0,0.00012363,2]
[323653076,1714147868668,-500.0,0.00012363,2]
[323653077,1714147868677,-1978.97,0.00012363,2]
[323653078,1714147868686,-500.0,0.00012363,2]
[323653079,1714147868696,-500.0,0.00012363,2]
[323653080,1714147868705,-500.0,0.00012363,2]
[323653081,1714147868715,-500.0,0.00012363,2]
[323653082,1714147868725,-500.0,0.00012363,2]
[323653083,1714147868735,-822.01,0.00012363,2]
[323653084,1714147868745,-573.66,0.00012363,2]
[323653085,1714147868755,-500.0,0.00012363,2]
[323653086,1714147868764,-1061.92,0.00012363,2]
[323653087,1714147868774,-500.0,0.00012363,2]
[323653088,1714147868783,-500.0,0.00012363,2]
[323653089,1714147868792,-500.0,0.00012363,2]
[323653090,1714147868803,-500.0,0.00012363,2]
[323653091,1714147868814,-500.0,0.00012363,2]
[323653092,1714147868823,-500.0,0.00012363,2]
[323653093,1714147868833,-500.0,0.00012363,2]
[323653094,1714147868842,-551.77,0.00012363,2]
[323653095,1714147868853,-500.0,0.00012363,2]
[323653096,1714147868864,-500.0,0.00012363,2]
[323653097,1714147868874,-500.0,0.00012363,2]
[323653098,1714147868883,-1364.92,0.00012363,2]
[323653099,1714147868895,-1601.26,0.00012363,2]
[323653100,1714147868905,-500.0,0.00012363,2]
[323653101,1714147868915,-806.46,0.00012363,2]
[323653102,1714147868925,-500.0,0.00012363,2]
[323653103,1714147868935,-500.0,0.00012363,2]
[323653104,1714147868945,-2366.13,0.00012363,2]
[323653105,1714147868955,-1809.35,0.00012363,2]
[323653106,1714147868965,-678.35,0.00012363,2]
[323653107,1714147868974,-500.0,0.00012363,2]
[323653108,1714147868985,-500.0,0.00012363,2]
[323653109,1714147868995,-500.0,0.00012363,2]
[323653110,1714147869004,-546.67,0.00012363,2]
[323653111,1714147869015,-2228.46,0.00012363,2]
[323653112,1714147869027,-500.0,0.00012363,2]
[323653113,1714147869037,-500.0,0.00012363,2]
[323653114,1714147869046,-500.0,0.00012363,2]
[323653115,1714147869056,-1118.0,0.00012363,2]
[323653116,1714147869065,-500.0,0.00012363,2]
[323653117,1714147869074,-500.0,0.00012363,2]
[323653118,1714147869084,-1242.08,0.00012363,2]
[323653119,1714147869093,-500.0,0.00012363,2]
[323653120,1714147869103,-608.76199969,0.00012363,2]
[323653121,1714147869112,-500.0,0.00012363,2]
[323653122,1714147869121,-500.0,0.00012363,2]
[323653123,1714147869130,-500.0,0.00012363,2]
[323653124,1714147869142,-500.0,0.00012363,2]
[323653125,1714147869152,-5440.21,0.00012363,2]
[323653126,1714147869163,-500.0,0.00012363,2]
[323653127,1714147869174,-500.0,0.00012364,2]
[323653128,1714147869183,-500.0,0.00012364,2]
[323653129,1714147869193,-500.0,0.00012364,2]
[323653130,1714147869203,-500.0,0.00012364,2]
[323653131,1714147869212,-500.0,0.00012364,2]
[323653132,1714147869222,-631.6,0.00012364,2]
[323653133,1714147869231,-500.0,0.00012364,2]
[323653134,1714147869242,-500.0,0.00012364,2]
[323653135,1714147869252,-500.0,0.00012364,2]
[323653136,1714147869261,-500.0,0.00012364,2]
[323653137,1714147869270,-500.0,0.00012364,2]
[323653138,1714147869280,-500.0,0.00012364,2]
[323653139,1714147869289,-500.0,0.00012364,2]
[323653140,1714147869299,-500.0,0.00012364,2]
[323653141,1714147869309,-500.0,0.00012364,2]
[323653142,1714147869318,-500.0,0.00012364,2]
[323653143,1714147869327,-500.0,0.00012364,2]
[323653144,1714147869337,-500.0,0.00012364,2]
[323653145,1714147869346,-500.0,0.00012364,2]
[323653146,1714147869356,-500.0,0.00012364,2]
[323653147,1714147869365,-500.0,0.00012364,2]
[323653148,1714147869374,-500.0,0.00012364,2]
[323653149,1714147869383,-500.0,0.00012364,2]
[323653150,1714147869392,-500.0,0.00012364,2]
[323653151,1714147869401,-500.0,0.00012364,2]
[323653152,1714147869412,-556.8,0.00012364,2]
[323653153,1714147869421,-500.0,0.00012364,2]
[323653154,1714147869430,-500.0,0.00012364,2]
[323653155,1714147869439,-500.0,0.00012364,2]
[323653156,1714147869450,-500.0,0.00012364,2]
[323653157,1714147869459,-467.13,0.00012364,2]
[323653158,1714147869469,-500.0,0.00012364,2]
[323653159,1714147869478,-686.34,0.00012364,2]
[323653160,1714147869487,-484.29,0.00012364,2]
[323653161,1714147869497,-500.0,0.00012364,2]
[323653162,1714147869506,-592.9687139,0.00012364,2]
[323653163,1714147869515,-469.24,0.00012364,2]
[323653164,1714147869524,-500.0,0.00012364,2]
[323653165,1714147869533,-276.12,0.00012364,2]
[323653166,1714147869542,-500.0,0.00012364,2]
[323653167,1714147869552,-630.94,0.00012364,2]
[323653168,1714147869561,-500.0,0.00012364,2]
[323653169,1714147869571,-500.0,0.00012364,2]
[323653170,1714147869580,-345.93,0.00012364,2]
[323653171,1714147869590,-500.0,0.00012364,2]
[323653172,1714147869599,-553.25,0.00012364,2]
[323653173,1714147869608,-575.82,0.00012364,2]
[323653174,1714147869618,-500.0,0.00012364,2]
[323653175,1714147869627,-500.0,0.00012364,2]
[323653176,1714147869637,-521.01,0.00012364,2]
[323653177,1714147869647,-500.0,0.00012364,2]
[323653178,1714147869657,-297.1,0.00012364,2]
[323653179,1714147869666,-506.0,0.00012364,2]
[323653180,1714147869676,-500.0,0.00012364,2]
[323653181,1714147869685,-500.0,0.00012364,2]